[Event "Titled Tuesday Blitz May 2 Early 2023"]
[White "Tarasova, Viktoriya"]
[Black "Dimitrov, Atanas"]
[WhiteFideId "4175840"]
[BlackFideId "2901315"]
[WhiteElo "2182"]
[BlackElo "2269"]
[Result "1-0"]
[Round "01"]
[TimeControl "180+2"]
[Date "2023.05.02"]
[WhiteClock "0:00:00"]
[BlackClock "0:00:00"]

1. d4 {[%clk 0:00:01]}  Nf6 {[%clk 0:00:01]} 2. c4 {[%clk 0:00:01]}  g6 {[%clk 0:00:01]} 3. Nc3 {[%clk 0:00:01]}  d5 {[%clk 0:00:01]} 4. cxd5 {[%clk 0:00:01]}  Nxd5 {[%clk 0:00:01]} 5. g3 {[%clk 0:00:01]}  Bg7 {[%clk 0:00:01]} 6. Bg2 {[%clk 0:00:01]}  Nxc3 {[%clk 0:00:01]} 7. bxc3 {[%clk 0:00:01]}  O-O {[%clk 0:00:01]} 8. e3 {[%clk 0:00:01]}  c5 {[%clk 0:00:01]} 9. Ne2 {[%clk 0:00:01]}  cxd4 {[%clk 0:00:01]} 10. cxd4 {[%clk 0:00:01]}  Nc6 {[%clk 0:00:01]} 11. O-O {[%clk 0:00:01]}  Be6 {[%clk 0:00:01]} 12. Bd2 {[%clk 0:00:01]}  Bc4 {[%clk 0:00:01]} 13. Re1 {[%clk 0:00:01]}  Rc8 {[%clk 0:00:01]} 14. a3 {[%clk 0:00:01]}  e5 {[%clk 0:00:01]} 15. dxe5 {[%clk 0:00:00]}  Bxe5 {[%clk 0:00:01]} 16. Rb1 {[%clk 0:00:00]}  b5 {[%clk 0:00:01]} 17. Nf4 {[%clk 0:00:00]}  Qb6 {[%clk 0:00:00]} 18. Nd5 {[%clk 0:00:00]}  Qc5 {[%clk 0:00:00]} 19. Bb4 {[%clk 0:00:00]}  Nxb4 {[%clk 0:00:00]} 20. axb4 {[%clk 0:00:00]}  Qd6 {[%clk 0:00:00]} 21. f4 {[%clk 0:00:00]}  Bg7 {[%clk 0:00:00]} 22. e4 {[%clk 0:00:00]}  Rfd8 {[%clk 0:00:00]} 23. Qf3 {[%clk 0:00:00]}  Bxd5 {[%clk 0:00:00]} 24. exd5 {[%clk 0:00:00]}  Rc3 {[%clk 0:00:00]} 25. Qe2 {[%clk 0:00:00]}  Qb6+ {[%clk 0:00:00]} 26. Kh1 {[%clk 0:00:00]}  h5 {[%clk 0:00:00]} 27. Rbc1 {[%clk 0:00:00]}  Qd4 {[%clk 0:00:00]} 28. Rxc3 {[%clk 0:00:00]}  Qxc3 {[%clk 0:00:00]} 29. Rb1 {[%clk 0:00:00]}  a6 {[%clk 0:00:00]} 30. Bf3 {[%clk 0:00:00]}  Qd4 {[%clk 0:00:00]} 31. Qe4 {[%clk 0:00:00]}  Qc3 {[%clk 0:00:00]} 32. Kg2 {[%clk 0:00:00]}  Bf6 {[%clk 0:00:00]} 33. Rd1 {[%clk 0:00:00]}  Qc7 {[%clk 0:00:00]} 34. Kh1 {[%clk 0:00:00]}  Kg7 {[%clk 0:00:00]} 35. Re1 {[%clk 0:00:00]}  Qc3 {[%clk 0:00:00]} 36. Kg2 {[%clk 0:00:00]}  Rd6 {[%clk 0:00:00]} 37. Kh1 {[%clk 0:00:00]}  Qd2 {[%clk 0:00:00]} 38. Rd1 {[%clk 0:00:00]}  Qf2 {[%clk 0:00:00]} 39. Bg2 {[%clk 0:00:00]}  Rd7 {[%clk 0:00:00]} 40. d6 {[%clk 0:00:00]}  Qb2 {[%clk 0:00:00]} 41. Qc6 {[%clk 0:00:00]}  Rd8 {[%clk 0:00:00]} 42. Qc5 {[%clk 0:00:00]}  Bc3 {[%clk 0:00:00]} 43. f5 {[%clk 0:00:00]}  Qxb4 {[%clk 0:00:00]} 44. Qd5 {[%clk 0:00:00]}  Qc4 {[%clk 0:00:00]} 45. Qxc4 {[%clk 0:00:00]}  bxc4 {[%clk 0:00:00]} 46. fxg6 {[%clk 0:00:00]}  fxg6 {[%clk 0:00:00]} 47. d7 {[%clk 0:00:00]}  Bf6 {[%clk 0:00:00]} 48. Bc6 {[%clk 0:00:00]}  c3 {[%clk 0:00:00]} 49. Rc1 {[%clk 0:00:00]}  a5 {[%clk 0:00:00]} 50. Kg2 {[%clk 0:00:00]}  Kf7 {[%clk 0:00:00]} 51. Kf3 {[%clk 0:00:00]}  Ke7 {[%clk 0:00:00]} 52. Ke4 {[%clk 0:00:00]}  Kd6 {[%clk 0:00:00]} 53. Ba4 {[%clk 0:00:00]}  Kc5 {[%clk 0:00:00]} 54. Kd3 {[%clk 0:00:00]}  Kb4 {[%clk 0:00:00]} 55. Bc6 {[%clk 0:00:00]}  Kc5 {[%clk 0:00:00]} 56. Ba4 {[%clk 0:00:00]}  Rb8 {[%clk 0:00:00]} 57. Rf1 {[%clk 0:00:00]}  Be7 {[%clk 0:00:00]} 58. Rf7 {[%clk 0:00:00]}  Kd6 {[%clk 0:00:00]} 59. Kc2 {[%clk 0:00:00]}  Ke6 {[%clk 0:00:00]} 60. Rg7 {[%clk 0:00:00]}  Kf6 {[%clk 0:00:00]} 61. Rh7 {[%clk 0:00:00]}  Bb4 {[%clk 0:00:00]} 62. Bb3 {[%clk 0:00:00]}  Rd8 {[%clk 0:00:00]} 63. Rf7+ {[%clk 0:00:00]}  Ke5 {[%clk 0:00:00]} 64. Rg7 {[%clk 0:00:00]}  Kf6 {[%clk 0:00:00]} 65. Rf7+ {[%clk 0:00:00]}  Kg5 {[%clk 0:00:00]} 66. Rg7 {[%clk 0:00:00]}  Kh6 {[%clk 0:00:00]} 67. Rf7 {[%clk 0:00:00]}  g5 {[%clk 0:00:00]} 68. Rf6+ {[%clk 0:00:00]}  Kg7 {[%clk 0:00:00]} 69. Rf7+ {[%clk 0:00:00]}  Kg6 {[%clk 0:00:00]} 70. Rf1 {[%clk 0:00:00]}  h4 {[%clk 0:00:00]} 71. Be6 {[%clk 0:00:00]}  hxg3 {[%clk 0:00:00]} 72. Bf5+ {[%clk 0:00:00]}  Kg7 {[%clk 0:00:00]} 73. hxg3 {[%clk 0:00:00]}  Rh8 {[%clk 0:00:00]} 74. g4 {[%clk 0:00:00]}  Kf6 {[%clk 0:00:00]} 75. Kb3 {[%clk 0:00:00]}  Ke7 {[%clk 0:00:00]} 76. Re1+ {[%clk 0:00:00]}  Kd8 {[%clk 0:00:00]} 77. Rd1 {[%clk 0:00:00]}  Rh2 {[%clk 0:00:00]} 78. Rc1 {[%clk 0:00:00]}  Rb2+ {[%clk 0:00:00]} 79. Kc4 {[%clk 0:00:00]}  a4 {[%clk 0:00:00]} 80. Rh1 {[%clk 0:00:00]}  Rd2 {[%clk 0:00:00]} 81. Rh8+ {[%clk 0:00:00]}  Kc7 {[%clk 0:00:00]} 82. Rc8+ {[%clk 0:00:00]}  Kb7 {[%clk 0:00:00]} 83. d8=Q {[%clk 0:00:00]}  Rxd8 {[%clk 0:00:00]} 84. Rxd8 {[%clk 0:00:00]}  a3 {[%clk 0:00:00]} 85. Kb3 {[%clk 0:00:00]}  a2 {[%clk 0:00:00]} 86. Kxa2 {[%clk 0:00:00]} 1-0


[Site "https://www.chess.com"]

[Event "Titled Tuesday Blitz May 2 Early 2023"]
[White "Dronavalli, Harika"]
[Black "Khromkin, Andrey"]
[WhiteFideId "5015197"]
[BlackFideId "4154126"]
[WhiteElo "2432"]
[BlackElo "2191"]
[Result "0-1"]
[Round "01"]
[TimeControl "180+2"]
[Date "2023.05.02"]
[WhiteClock "0:00:00"]
[BlackClock "0:00:00"]

1. Nf3 {[%clk 0:00:01]}  c5 {[%clk 0:00:01]} 2. c4 {[%clk 0:00:01]}  Nc6 {[%clk 0:00:01]} 3. d4 {[%clk 0:00:01]}  cxd4 {[%clk 0:00:01]} 4. Nxd4 {[%clk 0:00:01]}  g6 {[%clk 0:00:01]} 5. e4 {[%clk 0:00:01]}  Bg7 {[%clk 0:00:01]} 6. Be3 {[%clk 0:00:01]}  Nf6 {[%clk 0:00:01]} 7. Nc3 {[%clk 0:00:01]}  Ng4 {[%clk 0:00:01]} 8. Qxg4 {[%clk 0:00:01]}  Nxd4 {[%clk 0:00:01]} 9. Qd1 {[%clk 0:00:01]}  Ne6 {[%clk 0:00:01]} 10. Qd2 {[%clk 0:00:01]}  Qa5 {[%clk 0:00:01]} 11. Rc1 {[%clk 0:00:01]}  b6 {[%clk 0:00:01]} 12. Be2 {[%clk 0:00:01]}  Bb7 {[%clk 0:00:01]} 13. f3 {[%clk 0:00:01]}  f5 {[%clk 0:00:01]} 14. exf5 {[%clk 0:00:01]}  gxf5 {[%clk 0:00:01]} 15. a3 {[%clk 0:00:01]}  Rg8 {[%clk 0:00:01]} 16. O-O {[%clk 0:00:01]}  f4 {[%clk 0:00:01]} 17. Bxf4 {[%clk 0:00:00]}  Bd4+ {[%clk 0:00:01]} 18. Kh1 {[%clk 0:00:00]}  Qh5 {[%clk 0:00:01]} 19. Nd5 {[%clk 0:00:00]}  Bxd5 {[%clk 0:00:01]} 20. cxd5 {[%clk 0:00:00]}  Nxf4 {[%clk 0:00:01]} 21. Qxf4 {[%clk 0:00:00]}  Be5 {[%clk 0:00:01]} 22. g4 {[%clk 0:00:00]}  Bxf4 {[%clk 0:00:01]} 23. gxh5 {[%clk 0:00:00]}  Bxc1 {[%clk 0:00:01]} 24. Rxc1 {[%clk 0:00:00]}  Kd8 {[%clk 0:00:01]} 25. Bd3 {[%clk 0:00:00]}  Rg5 {[%clk 0:00:01]} 26. Bxh7 {[%clk 0:00:00]}  Rxh5 {[%clk 0:00:01]} 27. Be4 {[%clk 0:00:00]}  Rc8 {[%clk 0:00:01]} 28. Rg1 {[%clk 0:00:00]}  Kc7 {[%clk 0:00:01]} 29. Rg2 {[%clk 0:00:00]}  Kd6 {[%clk 0:00:01]} 30. Rg6+ {[%clk 0:00:00]}  e6 {[%clk 0:00:01]} 31. dxe6 {[%clk 0:00:00]}  dxe6 {[%clk 0:00:01]} 32. Rg7 {[%clk 0:00:00]}  Rch8 {[%clk 0:00:01]} 33. Rg2 {[%clk 0:00:00]}  Ke5 {[%clk 0:00:00]} 34. b4 {[%clk 0:00:00]}  Kf4 {[%clk 0:00:00]} 35. Kg1 {[%clk 0:00:00]}  Rg5 {[%clk 0:00:00]} 36. Rxg5 {[%clk 0:00:00]}  Kxg5 {[%clk 0:00:00]} 37. b5 {[%clk 0:00:00]}  Kf4 {[%clk 0:00:00]} 38. Kg2 {[%clk 0:00:00]}  Rh5 {[%clk 0:00:00]} 39. a4 {[%clk 0:00:00]}  Rc5 {[%clk 0:00:00]} 40. h4 {[%clk 0:00:00]}  Rc4 {[%clk 0:00:00]} 41. h5 {[%clk 0:00:00]}  Kg5 {[%clk 0:00:00]} 42. Kg3 {[%clk 0:00:00]}  Rxa4 {[%clk 0:00:00]} 43. Bg6 {[%clk 0:00:00]}  a6 {[%clk 0:00:00]} 44. bxa6 {[%clk 0:00:00]}  Rxa6 {[%clk 0:00:00]} 45. Be8 {[%clk 0:00:00]}  Ra3 {[%clk 0:00:00]} 46. Bd7 {[%clk 0:00:00]}  e5 {[%clk 0:00:00]} 47. Bc6 {[%clk 0:00:00]}  Kxh5 {[%clk 0:00:00]} 0-1


[Site "https://www.chess.com"]

[Event "Titled Tuesday Blitz May 2 Early 2023"]
[White "Rakotomaharo, Fy Antenaina"]
[Black "Panico, Nick"]
[WhiteFideId "13100050"]
[BlackFideId "2026724"]
[WhiteElo "2427"]
[BlackElo "1982"]
[Result "1-0"]
[Round "01"]
[TimeControl "180+2"]
[Date "2023.05.02"]
[WhiteClock "0:00:01"]
[BlackClock "0:00:00"]

1. Nf3 {[%clk 0:00:01]}  f5 {[%clk 0:00:01]} 2. d3 {[%clk 0:00:01]}  d6 {[%clk 0:00:01]} 3. e4 {[%clk 0:00:01]}  e5 {[%clk 0:00:01]} 4. Nc3 {[%clk 0:00:01]}  Nc6 {[%clk 0:00:01]} 5. d4 {[%clk 0:00:01]}  exd4 {[%clk 0:00:01]} 6. Nxd4 {[%clk 0:00:01]}  Nxd4 {[%clk 0:00:01]} 7. Qxd4 {[%clk 0:00:01]}  Nf6 {[%clk 0:00:01]} 8. Bc4 {[%clk 0:00:01]}  Qe7 {[%clk 0:00:01]} 9. Bg5 {[%clk 0:00:01]}  c6 {[%clk 0:00:01]} 10. O-O-O {[%clk 0:00:01]}  Qe5 {[%clk 0:00:01]} 11. Qxe5+ {[%clk 0:00:01]}  dxe5 {[%clk 0:00:01]} 12. exf5 {[%clk 0:00:01]}  Bxf5 {[%clk 0:00:01]} 13. Rhe1 {[%clk 0:00:01]}  h6 {[%clk 0:00:01]} 14. Rxe5+ {[%clk 0:00:01]}  Be7 {[%clk 0:00:01]} 15. Bxf6 {[%clk 0:00:01]}  gxf6 {[%clk 0:00:01]} 16. Rxf5 {[%clk 0:00:01]}  Kf8 {[%clk 0:00:00]} 17. Rd7 {[%clk 0:00:01]}  Rd8 {[%clk 0:00:00]} 18. Rxb7 {[%clk 0:00:01]}  Bb4 {[%clk 0:00:00]} 19. Rxb4 {[%clk 0:00:01]}  c5 {[%clk 0:00:00]} 20. Rb7 {[%clk 0:00:01]}  Ke8 {[%clk 0:00:00]} 21. Bb5+ {[%clk 0:00:01]}  Kf8 {[%clk 0:00:00]} 22. Rxf6+ {[%clk 0:00:01]} 1-0


[Site "https://www.chess.com"]

[Event "Titled Tuesday Blitz May 2 Early 2023"]
[White "Rodriguez Santiago, Jaime"]
[Black "Filgueira, Hernan"]
[WhiteFideId "3100898"]
[BlackFideId "101770"]
[WhiteElo "2025"]
[BlackElo "2363"]
[Result "0-1"]
[Round "01"]
[TimeControl "180+2"]
[Date "2023.05.02"]
[WhiteClock "0:00:00"]
[BlackClock "0:00:00"]

1. c4 {[%clk 0:00:01]}  e5 {[%clk 0:00:01]} 2. Nc3 {[%clk 0:00:01]}  Nf6 {[%clk 0:00:01]} 3. g3 {[%clk 0:00:01]}  h6 {[%clk 0:00:01]} 4. Bg2 {[%clk 0:00:01]}  Bb4 {[%clk 0:00:01]} 5. Nd5 {[%clk 0:00:01]}  Be7 {[%clk 0:00:01]} 6. e3 {[%clk 0:00:01]}  c6 {[%clk 0:00:01]} 7. Nxf6+ {[%clk 0:00:01]}  Bxf6 {[%clk 0:00:01]} 8. e4 {[%clk 0:00:01]}  O-O {[%clk 0:00:01]} 9. Ne2 {[%clk 0:00:01]}  Na6 {[%clk 0:00:01]} 10. O-O {[%clk 0:00:01]}  d6 {[%clk 0:00:01]} 11. d3 {[%clk 0:00:01]}  Nc5 {[%clk 0:00:01]} 12. b4 {[%clk 0:00:01]}  Ne6 {[%clk 0:00:01]} 13. Be3 {[%clk 0:00:01]}  a6 {[%clk 0:00:01]} 14. a4 {[%clk 0:00:01]}  a5 {[%clk 0:00:01]} 15. b5 {[%clk 0:00:01]}  Nc5 {[%clk 0:00:01]} 16. Rb1 {[%clk 0:00:01]}  Bg4 {[%clk 0:00:01]} 17. f3 {[%clk 0:00:01]}  Be6 {[%clk 0:00:01]} 18. Bxc5 {[%clk 0:00:01]}  dxc5 {[%clk 0:00:01]} 19. bxc6 {[%clk 0:00:01]}  bxc6 {[%clk 0:00:01]} 20. Qc2 {[%clk 0:00:00]}  Qc7 {[%clk 0:00:01]} 21. Nc3 {[%clk 0:00:00]}  Rab8 {[%clk 0:00:01]} 22. Qf2 {[%clk 0:00:00]}  Be7 {[%clk 0:00:01]} 23. f4 {[%clk 0:00:00]}  f6 {[%clk 0:00:00]} 24. f5 {[%clk 0:00:00]}  Bf7 {[%clk 0:00:00]} 25. g4 {[%clk 0:00:00]}  Rfd8 {[%clk 0:00:00]} 26. Qe3 {[%clk 0:00:00]}  Qd6 {[%clk 0:00:00]} 27. Rxb8 {[%clk 0:00:00]}  Rxb8 {[%clk 0:00:00]} 28. Nd1 {[%clk 0:00:00]}  Qd4 {[%clk 0:00:00]} 29. h4 {[%clk 0:00:00]}  Rb4 {[%clk 0:00:00]} 30. Qxd4 {[%clk 0:00:00]}  cxd4 {[%clk 0:00:00]} 31. Rf2 {[%clk 0:00:00]}  Rxa4 {[%clk 0:00:00]} 32. Kh2 {[%clk 0:00:00]}  Rb4 {[%clk 0:00:00]} 33. Ra2 {[%clk 0:00:00]}  Bd8 {[%clk 0:00:00]} 34. Nb2 {[%clk 0:00:00]}  Be8 {[%clk 0:00:00]} 35. Bf1 {[%clk 0:00:00]}  c5 {[%clk 0:00:00]} 36. Be2 {[%clk 0:00:00]}  Kf8 {[%clk 0:00:00]} 37. Bd1 {[%clk 0:00:00]}  Ke7 {[%clk 0:00:00]} 38. Bc2 {[%clk 0:00:00]}  Kd6 {[%clk 0:00:00]} 39. Kg2 {[%clk 0:00:00]}  Bd7 {[%clk 0:00:00]} 40. Kf2 {[%clk 0:00:00]}  Bc7 {[%clk 0:00:00]} 41. Ke2 {[%clk 0:00:00]}  Rb8 {[%clk 0:00:00]} 42. Kd2 {[%clk 0:00:00]}  Rh8 {[%clk 0:00:00]} 43. Nd1 {[%clk 0:00:00]}  h5 {[%clk 0:00:00]} 44. g5 {[%clk 0:00:00]}  fxg5 {[%clk 0:00:00]} 45. hxg5 {[%clk 0:00:00]}  Bd8 {[%clk 0:00:00]} 46. g6 {[%clk 0:00:00]}  h4 {[%clk 0:00:00]} 47. Ke2 {[%clk 0:00:00]}  h3 {[%clk 0:00:00]} 48. Nf2 {[%clk 0:00:00]}  h2 {[%clk 0:00:00]} 49. Nh1 {[%clk 0:00:00]}  Rh3 {[%clk 0:00:00]} 50. Kf2 {[%clk 0:00:00]}  Re3 {[%clk 0:00:00]} 51. Bd1 {[%clk 0:00:00]}  Bh4+ {[%clk 0:00:00]} 52. Kg2 {[%clk 0:00:00]}  Re1 {[%clk 0:00:00]} 53. Bf3 {[%clk 0:00:00]}  a4 {[%clk 0:00:00]} 54. Kxh2 {[%clk 0:00:00]}  Rb1 {[%clk 0:00:00]} 55. Kh3 {[%clk 0:00:00]}  Bg5 {[%clk 0:00:00]} 56. Ng3 {[%clk 0:00:00]}  Ke7 {[%clk 0:00:00]} 57. Nh5 {[%clk 0:00:00]}  Bf6 {[%clk 0:00:00]} 58. Kg2 {[%clk 0:00:00]}  Rb3 {[%clk 0:00:00]} 59. Nxf6 {[%clk 0:00:00]}  Kxf6 {[%clk 0:00:00]} 60. Be2 {[%clk 0:00:00]}  a3 {[%clk 0:00:00]} 61. Kf3 {[%clk 0:00:00]}  Kg5 {[%clk 0:00:00]} 62. Kf2 {[%clk 0:00:00]}  Kf6 {[%clk 0:00:00]} 63. Ke1 {[%clk 0:00:00]}  Ba4 {[%clk 0:00:00]} 64. Bd1 {[%clk 0:00:00]}  Rb1 {[%clk 0:00:00]} 65. Rd2 {[%clk 0:00:00]}  Bxd1 {[%clk 0:00:00]} 66. Rxd1 {[%clk 0:00:00]}  Rxd1+ {[%clk 0:00:00]} 67. Kxd1 {[%clk 0:00:00]}  a2 {[%clk 0:00:00]} 68. Kc2 {[%clk 0:00:00]}  a1=Q {[%clk 0:00:00]} 0-1


[Site "https://www.chess.com"]

[Event "Titled Tuesday Blitz May 2 Early 2023"]
[White "Ardila, Oscar Humberto"]
[Black "Korchmar, Vasiliy"]
[WhiteFideId "4404742"]
[BlackFideId "24131750"]
[WhiteElo "1918"]
[BlackElo "2370"]
[Result "0-1"]
[Round "01"]
[TimeControl "180+2"]
[Date "2023.05.02"]
[WhiteClock "0:00:00"]
[BlackClock "0:00:00"]

1. d4 {[%clk 0:00:01]}  d5 {[%clk 0:00:01]} 2. c4 {[%clk 0:00:01]}  c6 {[%clk 0:00:01]} 3. cxd5 {[%clk 0:00:01]}  cxd5 {[%clk 0:00:01]} 4. Nc3 {[%clk 0:00:01]}  Nf6 {[%clk 0:00:01]} 5. Bf4 {[%clk 0:00:01]}  Nc6 {[%clk 0:00:01]} 6. Nf3 {[%clk 0:00:01]}  Nh5 {[%clk 0:00:01]} 7. Bg5 {[%clk 0:00:01]}  h6 {[%clk 0:00:01]} 8. Bc1 {[%clk 0:00:01]}  g6 {[%clk 0:00:01]} 9. e3 {[%clk 0:00:01]}  Bg7 {[%clk 0:00:01]} 10. Be2 {[%clk 0:00:01]}  O-O {[%clk 0:00:01]} 11. O-O {[%clk 0:00:01]}  Nf6 {[%clk 0:00:01]} 12. b3 {[%clk 0:00:01]}  Bf5 {[%clk 0:00:01]} 13. Bb2 {[%clk 0:00:01]}  Rc8 {[%clk 0:00:01]} 14. Rc1 {[%clk 0:00:01]}  Ne4 {[%clk 0:00:01]} 15. Nxe4 {[%clk 0:00:01]}  Bxe4 {[%clk 0:00:01]} 16. Nd2 {[%clk 0:00:01]}  Bf5 {[%clk 0:00:01]} 17. g4 {[%clk 0:00:01]}  Bd7 {[%clk 0:00:01]} 18. Bf3 {[%clk 0:00:01]}  e5 {[%clk 0:00:01]} 19. Bxd5 {[%clk 0:00:01]}  exd4 {[%clk 0:00:01]} 20. exd4 {[%clk 0:00:01]}  Nxd4 {[%clk 0:00:01]} 21. Nc4 {[%clk 0:00:01]}  Bxg4 {[%clk 0:00:01]} 22. Bxf7+ {[%clk 0:00:01]}  Rxf7 {[%clk 0:00:01]} 23. Qxg4 {[%clk 0:00:01]}  Nf3+ {[%clk 0:00:00]} 24. Kh1 {[%clk 0:00:00]}  Bxb2 {[%clk 0:00:00]} 25. Nxb2 {[%clk 0:00:00]}  Rxc1 {[%clk 0:00:00]} 26. Rxc1 {[%clk 0:00:00]}  Qd6 {[%clk 0:00:00]} 27. Qg2 {[%clk 0:00:00]}  Kh7 {[%clk 0:00:00]} 28. Nc4 {[%clk 0:00:00]}  Qf4 {[%clk 0:00:00]} 29. Rd1 {[%clk 0:00:00]}  Nh4 {[%clk 0:00:00]} 30. Qg3 {[%clk 0:00:00]}  Qe4+ {[%clk 0:00:00]} 31. Kg1 {[%clk 0:00:00]}  Nf3+ {[%clk 0:00:00]} 32. Kf1 {[%clk 0:00:00]}  Ng5 {[%clk 0:00:00]} 33. Kg1 {[%clk 0:00:00]}  Qc2 {[%clk 0:00:00]} 34. Qd3 {[%clk 0:00:00]}  Qxf2+ {[%clk 0:00:00]} 35. Kh1 {[%clk 0:00:00]}  Nf3 {[%clk 0:00:00]} 0-1


[Site "https://www.chess.com"]

[Event "Titled Tuesday Blitz May 2 Early 2023"]
[White "Taichman, Ori"]
[Black "Fernandez Garcia, Gumersindo"]
[WhiteFideId "2804069"]
[BlackFideId "24516740"]
[WhiteElo "2237"]
[BlackElo "2093"]
[Result "0-1"]
[Round "01"]
[TimeControl "180+2"]
[Date "2023.05.02"]
[WhiteClock "0:00:00"]
[BlackClock "0:00:00"]

1. e4 {[%clk 0:00:01]}  c5 {[%clk 0:00:01]} 2. Nf3 {[%clk 0:00:01]}  g6 {[%clk 0:00:01]} 3. h4 {[%clk 0:00:01]}  Nf6 {[%clk 0:00:01]} 4. e5 {[%clk 0:00:01]}  Nd5 {[%clk 0:00:01]} 5. h5 {[%clk 0:00:01]}  Bg7 {[%clk 0:00:01]} 6. h6 {[%clk 0:00:01]}  Bf8 {[%clk 0:00:01]} 7. d4 {[%clk 0:00:01]}  cxd4 {[%clk 0:00:01]} 8. Qxd4 {[%clk 0:00:01]}  Nb6 {[%clk 0:00:01]} 9. Nc3 {[%clk 0:00:01]}  Nc6 {[%clk 0:00:01]} 10. Qe4 {[%clk 0:00:01]}  d6 {[%clk 0:00:01]} 11. exd6 {[%clk 0:00:01]}  Qxd6 {[%clk 0:00:01]} 12. Bf4 {[%clk 0:00:01]}  Qe6 {[%clk 0:00:01]} 13. O-O-O {[%clk 0:00:01]}  Qxe4 {[%clk 0:00:01]} 14. Nxe4 {[%clk 0:00:01]}  f6 {[%clk 0:00:01]} 15. Bb5 {[%clk 0:00:01]}  e5 {[%clk 0:00:01]} 16. Nxe5 {[%clk 0:00:01]}  fxe5 {[%clk 0:00:01]} 17. Bxe5 {[%clk 0:00:01]}  Rg8 {[%clk 0:00:01]} 18. Nf6+ {[%clk 0:00:01]}  Kf7 {[%clk 0:00:01]} 19. Nxg8 {[%clk 0:00:01]}  Kxg8 {[%clk 0:00:01]} 20. Bd3 {[%clk 0:00:01]}  Nxe5 {[%clk 0:00:00]} 21. Be4 {[%clk 0:00:01]}  Bf5 {[%clk 0:00:00]} 22. Bxb7 {[%clk 0:00:01]}  Rb8 {[%clk 0:00:00]} 23. Ba6 {[%clk 0:00:00]}  Ng4 {[%clk 0:00:00]} 24. Rhf1 {[%clk 0:00:00]}  Bxh6+ {[%clk 0:00:00]} 25. Kb1 {[%clk 0:00:00]}  Bg7 {[%clk 0:00:00]} 26. f3 {[%clk 0:00:00]}  Ne3 {[%clk 0:00:00]} 27. Rfe1 {[%clk 0:00:00]}  Bxc2+ {[%clk 0:00:00]} 0-1


[Site "https://www.chess.com"]

[Event "Titled Tuesday Blitz May 2 Early 2023"]
[White "Ansh M Shah"]
[Black "Mamedov, Edgar"]
[WhiteFideId "25033379"]
[BlackFideId "13739980"]
[WhiteElo "2084"]
[BlackElo "2330"]
[Result "0-1"]
[Round "01"]
[TimeControl "180+2"]
[Date "2023.05.02"]
[WhiteClock "0:00:00"]
[BlackClock "0:00:00"]

1. d3 {[%clk 0:00:01]}  d5 {[%clk 0:00:01]} 2. d4 {[%clk 0:00:01]}  Nf6 {[%clk 0:00:01]} 3. Nf3 {[%clk 0:00:01]}  c5 {[%clk 0:00:01]} 4. e3 {[%clk 0:00:01]}  Nc6 {[%clk 0:00:01]} 5. b3 {[%clk 0:00:01]}  cxd4 {[%clk 0:00:01]} 6. exd4 {[%clk 0:00:01]}  Bg4 {[%clk 0:00:01]} 7. Be2 {[%clk 0:00:01]}  e6 {[%clk 0:00:01]} 8. O-O {[%clk 0:00:01]}  Bd6 {[%clk 0:00:01]} 9. Bb2 {[%clk 0:00:01]}  Ne4 {[%clk 0:00:01]} 10. Nbd2 {[%clk 0:00:01]}  Qf6 {[%clk 0:00:01]} 11. Nxe4 {[%clk 0:00:01]}  dxe4 {[%clk 0:00:01]} 12. Ne5 {[%clk 0:00:01]}  Bxe2 {[%clk 0:00:01]} 13. Qxe2 {[%clk 0:00:01]}  Bxe5 {[%clk 0:00:01]} 14. dxe5 {[%clk 0:00:01]}  Qf5 {[%clk 0:00:01]} 15. Rfe1 {[%clk 0:00:01]}  e3 {[%clk 0:00:01]} 16. Qxe3 {[%clk 0:00:01]}  Qxc2 {[%clk 0:00:01]} 17. Ba3 {[%clk 0:00:01]}  Rd8 {[%clk 0:00:01]} 18. Bd6 {[%clk 0:00:00]}  f6 {[%clk 0:00:01]} 19. Rec1 {[%clk 0:00:00]}  Qf5 {[%clk 0:00:01]} 20. f4 {[%clk 0:00:00]}  g5 {[%clk 0:00:01]} 21. Rf1 {[%clk 0:00:00]}  g4 {[%clk 0:00:01]} 22. Rfc1 {[%clk 0:00:00]}  Kf7 {[%clk 0:00:01]} 23. Rc4 {[%clk 0:00:00]}  h5 {[%clk 0:00:00]} 24. Rac1 {[%clk 0:00:00]}  Rd7 {[%clk 0:00:00]} 25. b4 {[%clk 0:00:00]}  a6 {[%clk 0:00:00]} 26. a4 {[%clk 0:00:00]}  Rhd8 {[%clk 0:00:00]} 27. b5 {[%clk 0:00:00]}  axb5 {[%clk 0:00:00]} 28. axb5 {[%clk 0:00:00]}  Ne7 {[%clk 0:00:00]} 29. Rc7 {[%clk 0:00:00]}  Nd5 {[%clk 0:00:00]} 30. Rxd7+ {[%clk 0:00:00]}  Rxd7 {[%clk 0:00:00]} 31. Qd4 {[%clk 0:00:00]}  Qxf4 {[%clk 0:00:00]} 32. Qxf4 {[%clk 0:00:00]}  Nxf4 {[%clk 0:00:00]} 33. Kf2 {[%clk 0:00:00]}  Nd3+ {[%clk 0:00:00]} 0-1


[Site "https://www.chess.com"]

[Event "Titled Tuesday Blitz May 2 Early 2023"]
[White "Girya, Olga"]
[Black "Mushini Ajay"]
[WhiteFideId "4195752"]
[BlackFideId "35066188"]
[WhiteElo "2263"]
[BlackElo "2145"]
[Result "0-1"]
[Round "01"]
[TimeControl "180+2"]
[Date "2023.05.02"]
[WhiteClock "0:00:00"]
[BlackClock "0:00:00"]

1. d4 {[%clk 0:00:01]}  Nf6 {[%clk 0:00:01]} 2. Nf3 {[%clk 0:00:01]}  g6 {[%clk 0:00:01]} 3. Bg5 {[%clk 0:00:01]}  Bg7 {[%clk 0:00:01]} 4. Nbd2 {[%clk 0:00:01]}  O-O {[%clk 0:00:01]} 5. c3 {[%clk 0:00:01]}  h6 {[%clk 0:00:01]} 6. Bh4 {[%clk 0:00:01]}  d5 {[%clk 0:00:01]} 7. e3 {[%clk 0:00:01]}  Nbd7 {[%clk 0:00:01]} 8. Be2 {[%clk 0:00:01]}  Re8 {[%clk 0:00:01]} 9. O-O {[%clk 0:00:01]}  e5 {[%clk 0:00:01]} 10. h3 {[%clk 0:00:01]}  e4 {[%clk 0:00:01]} 11. Nh2 {[%clk 0:00:01]}  c5 {[%clk 0:00:01]} 12. dxc5 {[%clk 0:00:01]}  Nxc5 {[%clk 0:00:01]} 13. Nb3 {[%clk 0:00:01]}  Nxb3 {[%clk 0:00:01]} 14. axb3 {[%clk 0:00:01]}  Be6 {[%clk 0:00:01]} 15. b4 {[%clk 0:00:01]}  a6 {[%clk 0:00:01]} 16. Ng4 {[%clk 0:00:01]}  g5 {[%clk 0:00:01]} 17. Nxf6+ {[%clk 0:00:01]}  Qxf6 {[%clk 0:00:01]} 18. Bg3 {[%clk 0:00:01]}  Red8 {[%clk 0:00:01]} 19. b5 {[%clk 0:00:01]}  axb5 {[%clk 0:00:01]} 20. Bxb5 {[%clk 0:00:01]}  Rxa1 {[%clk 0:00:01]} 21. Qxa1 {[%clk 0:00:01]}  h5 {[%clk 0:00:01]} 22. Be2 {[%clk 0:00:01]}  g4 {[%clk 0:00:01]} 23. h4 {[%clk 0:00:01]}  Qe7 {[%clk 0:00:01]} 24. Qa7 {[%clk 0:00:00]}  Bf6 {[%clk 0:00:01]} 25. Ra1 {[%clk 0:00:00]}  Bc8 {[%clk 0:00:01]} 26. Qb6 {[%clk 0:00:00]}  Bxh4 {[%clk 0:00:00]} 27. Bxh4 {[%clk 0:00:00]}  Qxh4 {[%clk 0:00:00]} 28. g3 {[%clk 0:00:00]}  Qe7 {[%clk 0:00:00]} 29. Ra8 {[%clk 0:00:00]}  Kg7 {[%clk 0:00:00]} 30. Qd4+ {[%clk 0:00:00]}  Qf6 {[%clk 0:00:00]} 31. Bd1 {[%clk 0:00:00]}  Qxd4 {[%clk 0:00:00]} 32. cxd4 {[%clk 0:00:00]}  Kf6 {[%clk 0:00:00]} 33. Bb3 {[%clk 0:00:00]}  Ke6 {[%clk 0:00:00]} 34. Ra5 {[%clk 0:00:00]}  Rd6 {[%clk 0:00:00]} 35. Rb5 {[%clk 0:00:00]}  b6 {[%clk 0:00:00]} 36. Ba2 {[%clk 0:00:00]}  Ba6 {[%clk 0:00:00]} 37. Rb4 {[%clk 0:00:00]}  Rc6 {[%clk 0:00:00]} 38. Kg2 {[%clk 0:00:00]}  Be2 {[%clk 0:00:00]} 0-1


[Site "https://www.chess.com"]